Workbook

Sheet CashFlow
B1: 127 James St.
B2: (1) 3 Bed - (3) 2 Bed - (2) 1 Bed
B4: Monthly Operating Income | C4: As Is | D4: Pro Forma
B5: Number of Units | C5: 6 | D5: 6
B6: Average Monthly Rent per Unit | C6: =C7/C5 -> 1591.5 | D6: 1783.333333
B7: Total Rental Income | C7: ='Rent Roll'!C8 -> 9549 | D7: ='Rent Roll'!D8 -> 10700
B8: % Vacancy and Credit Losses | C8: 0.05 | D8: 0.05 | E8: 5% Rule of Thumb
B9: Total Vacancy Loss | C9: =C8*C7 -> 477.45 | D9: 535
B10: Other Monthly Income (laundry, vending, parking, etc.)
B11: Gross Monthly Operating Income | C11: =C7-C9+C10 -> 9071.55 | D11: 10165
B13: Monthly Operating Expenses
B14: Property Management Fees | C14: =C11*0.05 -> 453.5775 | D14: 508.25 | E14: 5% Rule of Thumb
B15: Repairs and Maintenance | C15: =C11*0.05 -> 453.5775 | D15: 508.25 | E15: 5% Rule of Thumb
B16: Real Estate Taxes | C16: =12331/12 -> 1027.583333 | D16: 1027.583333
B17: Rental Property Insurance | C17: 500 | D17: 500
B18: Landscaping | C18: 50 | D18: 50
B19: Cleaning
B20: Common Utilities | E20: Common Utiltiies
B21: - Water and Sewer | C21: 300 | D21: 300
B22: - Garbage | C22: 100 | D22: 100
B23: - Electric | C23: TPU | D23: TPU
B24: - Heat | C24: TPU | D24: TPU
B25: Pest Control
B26: Advertising
B27: Monthly Operating Expenses | C27: =SUM(C14:C26) -> 2884.738333 | D27: 2994.083333
B29: Net Operating Income (NOI)
B30: Total Annual Operating Income | C30: =C11*12 -> 108858.6 | D30: 121980
B31: Total Annual Operating Expense | C31: =C27*12 -> 34616.86 | D31: 35929
B32: Annual Net Operating Income | C32: =C30-C31 -> 74241.74 | D32: 86051
B34: Capitalization Rate and Valuation
B35: Desired Capitalization Rate | C35: 0.065 | D35: 0.0725
B36: Property Valuation (Offer Price) | C36: =IF(C35=0," - ",C32/C35) -> 1142180.615 | D36: 1186910.345
B37: Actual Purchase Price | C37: 925000 | D37: 925000
B38: Actual Capitalization Rate | C38: =IF(C37=0," - ",C32/C37) -> 0.08026134054 | D38: 0.09302810811
B40: Loan Information
B41: Down Payment | C41: =C37*0.25 -> 231250 | D41: 231250 | E41: 25% Down
B42: Loan Amount | C42: =C37-C41 -> 693750 | D42: 693750 | E42: 75% LTV
B43: Acquisition Costs and Loan Fees | C43: =C37*0.0075 -> 6937.5 | D43: 6937.5 | E43: .75% of Ask Price
B44: Length of Mortgage (years) | C44: 30 | D44: 30
B45: Annual Interest Rate | C45: 0.0625 | D45: 0.0625
B46: Initial Investment | C46: =C41+C43 -> 238187.5 | D46: 238187.5
B47: Monthly Mortgage Payment (PI) | C47: =IF(C42=0,0,-PMT(C45/12,C44*12,C42)) -> 4271.538078 | D47: 4271.538078
B48: Annual Interest | C48: =IF(C42=0,0,-CUMIPMT(C45/12,C44*12,C42,1,12,0)) -> 43129.12439 | D48: 43129.12439
B49: Annual Principal | C49: =IF(C42=0,0,-CUMPRINC(C45/12,C44*12,C42,1,12,0)) -> 8129.332541 | D49: 8129.332541
B50: Total Annual Debt Service | C50: =C47*12 -> 51258.45694 | D50: 51258.45694
B51: DEBT SERVICE RATIO | C51: =C32/C50 -> 1.448380315 | D51: 1.678766883
B53: Cash Flow and ROI
B54: Total Monthly Cash Flow | C54: =C11-C27-C47 -> 1915.273589 | D54: 2899.378589
B55: Total Annual Cash Flow | C55: =C32-C50 -> 22983.28306 | D55: 34792.54306
B56: Cash on Cash Return (ROI) | C56: =IF(C46=0," ",C55/C46) -> 0.09649239807 | D56: 0.1460720779
B58: Note: This spreadsheet should only be used for informational and educational purposes. Please verify
B59: calculations and seek professional assistance before making financial decisions.

Sheet Rent Roll
A1: Unit Number | B1: Size | C1: Current Rent | D1: Pro Forma | E1: Subsidized | F1: Notes
A2: 1A | B2: 2 Bed / 1 Ba | C2: 1545 | D2: 1800
A3: 1B | B3: 1 Bed / 1 Ba | C3: 1459 | D3: 1550
A4: 2A | B4: 1 Bed / 1 Ba | C4: 1520 | D4: 1550
A5: 2B | B5: 2 Bed / 1 Ba | C5: 1600 | D5: 1800
A6: 3A | B6: 3 Bed / 1 ba | C6: 1950 | D6: 2200
A7: 3B | B7: 2 Bed / 1 Ba | C7: 1475 | D7: 1800
B8: TOTAL | C8: =SUM(C2:C7) -> 9549 | D8: 10700
